bitfinex/quotes_ETHUSD_20220220
["timestamp","ask_amount","ask_price","bid_price","bid_amount"]
[1645373388402,0.00886625,2662.5,2661.7,3.5]
[1645373388649,1.34457538,2662.4,2661.7,3.5]
[1645373388850,1.34457538,2662.4,2661.8,0.23355047]
[1645373389047,1.34457718,2662.3,2661.6,0.6]
[1645373389248,0.00886625,2662.5,2661.5,6.2323]
[1645373389447,1.35266762,2662.4,2661.6,0.23365514]
[1645373389647,1.34460208,2662.3,2661.5,1.1323]
[1645373389849,1.34399402,2662.2,2661.5,1.1323]
[1645373390052,0.00806554,2662.4,2661.5,1.1323]
[1645373390247,1.34401201,2662.3,2662.0,0.94974661]
[1645373390448,1.34401201,2662.3,2661.5,1.1323]
[1645373390449,0.66422553,2661.9,2661.5,1.1323]
[1645373390651,0.66422553,2661.9,2661.6,1.14006138]
[1645373394304,0.66422553,2661.9,2661.6,1.74006138]
[1645373395302,0.66422553,2661.9,2661.6,1.14006138]
[1645373396353,0.56422553,2661.9,2661.6,1.14006138]
[1645373396553,0.56422553,2661.9,2661.6,1.44006138]
[1645373396753,0.56422553,2661.9,2661.6,1.74006138]
[1645373398549,0.56422553,2661.9,2661.6,1.14006138]
[1645373399813,0.56422553,2661.9,2661.7,3.5]
[1645373400000,0.56422553,2661.9,2661.6,1.14006138]
[1645373400401,0.00766358,2662.3,2661.8,15.0]
[1645373400608,0.00766358,2662.3,2661.9,3.5]
[1645373400802,0.00766358,2662.3,2662.0,0.3]
[1645373401102,0.25,2663.0,2662.8,1.02784982]
[1645373401300,0.0081823,2662.6,2662.1,4.1632]
[1645373401701,0.0081823,2662.6,2662.1,4.4632]
[1645373402102,0.9396,2663.3,2662.1,3.1632]
[1645373402303,13.02063575,2663.2,2662.1,3.1632]
[1645373402504,0.0081818,2662.9,2662.6,0.90717705]
[1645373402703,1.31293575,2662.8,2662.6,0.90717705]
[1645373403651,1.31293575,2662.7,2662.1,3.1632]
[1645373403852,0.00235172,2663.1,2662.0,0.3]
[1645373404052,1.31558054,2663.1,2662.0,3.8]
[1645373404453,1.31322882,2663.1,2662.0,3.8]
[1645373404653,1.31322882,2663.1,2662.6,1.02275078]
[1645373404853,1.31322882,2663.0,2662.6,1.02275078]
[1645373406054,13.4596,2663.3,2662.6,1.02275078]
[1645373406055,0.00240043,2663.1,2662.6,1.02275078]
[1645373406956,13.4596,2663.3,2662.6,1.02275078]
[1645373407322,0.00240046,2663.1,2662.6,1.02275078]
[1645373407510,0.00240046,2663.1,2662.6,1.32275078]
[1645373407709,0.00240046,2663.1,2662.6,1.62275078]
[1645373408106,0.93945,2663.7,2662.6,1.62275078]
[1645373408313,0.93945,2663.7,2663.2,1.11717679]
[1645373408610,0.00500541,2663.4,2663.2,1.11717679]
[1645373408809,0.00500541,2663.4,2662.8,1.0]
[1645373409209,0.00500541,2663.4,2662.8,1.6]
[1645373409412,0.25,2663.8,2662.8,1.6]
[1645373409609,0.00125154,2663.2,2662.8,5.1]
[1645373409809,0.00125154,2663.2,2662.8,1.6]
[1645373410007,0.00125154,2663.2,2663.1,1.11724782]
[1645373410609,0.58508362,2663.0,2662.8,6.3496]
[1645373410808,0.58508362,2663.0,2662.8,2.8496]
[1645373411061,0.58508362,2663.0,2662.8,1.16306434]
[1645373411256,0.58508362,2663.0,2662.9,3.5]
[1645373411758,0.58508362,2663.0,2662.9,4.5]
[1645373412161,0.0024032,2663.1,2663.0,11.5]
[1645373412358,0.0024032,2663.1,2663.0,4.8]
[1645373412759,0.0024032,2663.1,2663.0,5.1]
[1645373412957,0.25,2663.8,2663.0,5.1]
[1645373413157,4.420531,2664.4,2663.1,1.0]
[1645373413158,0.00125154,2663.2,2663.1,1.0]
[1645373413360,0.00125154,2663.2,2663.1,1.95069025]
[1645373413564,0.00125154,2663.2,2663.1,0.95069025]
[1645373413762,3.5,2663.8,2663.1,0.95069025]
[1645373413958,12.59920397,2663.9,2663.1,0.95069025]
[1645373414359,3.5,2663.8,2663.1,0.95069025]
[1645373414906,15.02,2663.8,2663.1,0.95069025]
[1645373415106,15.02,2663.8,2663.0,4.0683]
[1645373415305,15.735831,2663.8,2663.0,4.0683]
[1645373415705,11.52,2663.8,2663.0,4.0683]
[1645373416404,11.52,2663.8,2663.0,5.08662399]
[1645373416603,5.29503497,2663.9,2663.0,5.08662399]
[1645373416807,16.81503497,2663.9,2663.0,5.08662399]
[1645373417409,11.52,2663.7,2662.5,3.1991]
[1645373417611,11.52,2663.5,2662.5,4.3439]
[1645373417808,11.52,2663.3,2662.5,4.3439]
[1645373418008,3.5,2663.4,2662.5,4.3439]
[1645373418409,0.88092834,2663.4,2662.7,0.87502708]
[1645373418654,0.715831,2663.6,2662.7,0.87502708]
[1645373418856,0.715831,2663.6,2662.7,1.17502708]
[1645373419050,11.52,2663.6,2662.7,1.17502708]
[1645373419450,4.2182473,2663.7,2662.7,1.17502708]
[1645373419652,0.7182473,2663.7,2662.7,1.17502708]
[1645373419859,0.92543595,2663.6,2662.7,1.17502708]
[1645373420354,3.5,2663.5,2662.7,1.17502708]
[1645373420556,15.02,2663.5,2662.7,1.17502708]
[1645373420757,15.02,2663.5,2662.5,2.4448]
[1645373421052,3.5,2663.5,2662.5,2.7448]
[1645373421257,3.5,2663.5,2662.5,2.4448]
[1645373421652,0.9151153,2663.2,2662.6,1.02889898]
[1645373421953,15.02,2663.5,2662.5,2.4448]
[1645373422153,0.71816754,2663.7,2662.5,2.7448]
[1645373422405,0.00233654,2663.7,2662.5,2.7448]
[1645373422615,0.903531,2663.8,2662.5,2.7448]
[1645373422616,0.715831,2663.8,2662.5,2.7448]
[1645373422804,0.715831,2663.9,2662.5,2.7448]
[1645373423002,1.02667307,2663.7,2662.5,2.7448]
[1645373423207,1.02667307,2663.7,2662.5,2.1448]
[1645373423404,0.00233659,2663.7,2662.5,2.1448]
[1645373423811,3.5,2663.8,2662.5,2.1448]
[1645373424209,0.00233659,2663.7,2662.5,2.1448]
[1645373424409,0.00233659,2663.7,2662.5,2.4448]
[1645373424607,1.06855072,2663.5,2662.8,0.9680537]
[1645373424804,0.00233659,2663.7,2662.8,1.2680537]
[1645373425007,0.715831,2663.8,2662.8,1.5680537]
[1645373425306,0.00221456,2663.7,2662.8,1.56591123]
[1645373425704,3.50221456,2663.7,2662.8,0.56591123]
[1645373425909,0.00221456,2663.7,2662.8,0.56591123]
[1645373426152,1.26572394,2663.8,2662.8,0.56591123]
[1645373426552,0.00221461,2663.7,2662.8,0.56591123]
[1645373427154,0.00221461,2663.7,2662.8,0.86591123]
[1645373427353,1.26572394,2663.7,2663.2,1.16361617]
[1645373427555,1.26572394,2663.6,2663.2,1.46361617]
[1645373427754,1.26572394,2663.5,2663.2,1.46361617]
[1645373427955,1.26572394,2663.4,2662.6,1.0]
[1645373428152,0.00221461,2663.7,2662.7,0.31180711]
[1645373428153,1.26572394,2663.3,2662.7,0.31180711]
[1645373428353,0.00221461,2663.7,2662.7,0.31180711]
[1645373428354,1.26572394,2663.2,2662.7,0.31180711]
[1645373428558,4.215831,2663.9,2662.7,0.31180711]
[1645373428753,1.26595319,2663.8,2662.7,0.31180711]
[1645373428959,0.00223234,2663.7,2662.7,0.31180711]
[1645373429155,0.00223234,2663.7,2663.3,1.15961236]
[1645373429800,1.26595319,2663.8,2663.3,1.15961236]
[1645373430004,1.26595319,2663.8,2662.8,2.4984]
[1645373430203,0.00223257,2663.7,2662.8,1.7984]
[1645373431102,1.26595319,2663.8,2663.3,1.09998058]
[1645373431303,0.00223245,2663.7,2663.3,1.09998058]
[1645373431607,1.26818564,2663.7,2663.3,1.09998058]
[1645373431807,0.00223245,2663.7,2663.3,1.69998058]
[1645373432207,1.26578665,2663.9,2663.3,1.69998058]
[1645373432608,0.00222996,2663.7,2663.3,1.69998058]
[1645373433007,0.00222996,2663.7,2663.3,0.6]
[1645373433209,0.00222996,2663.7,2662.8,4.139]
[1645373433408,1.26578015,2663.9,2662.9,0.31163242]
[1645373433856,0.00222996,2663.7,2662.9,0.31163242]
[1645373434263,0.00222996,2663.7,2663.3,1.06984757]
[1645373434657,1.26578015,2663.9,2663.3,1.66984757]
[1645373434866,0.00222996,2663.7,2663.3,1.66984757]
[1645373435260,0.00133517,2663.7,2663.4,0.29078601]
[1645373435857,0.25,2664.0,2663.4,0.29078601]
[1645373436059,0.00430138,2664.6,2663.4,0.29078601]
[1645373436259,0.25,2664.7,2663.5,1.4416]
[1645373436460,0.00430138,2664.6,2663.5,1.4416]
[1645373436658,0.00430138,2664.6,2663.5,2.7416]
[1645373436962,0.00430138,2664.6,2664.4,1.12744719]
[1645373437163,0.25,2664.7,2664.4,1.12744719]
[1645373437402,0.00497574,2664.6,2664.4,1.12744719]
[1645373437607,0.00497574,2664.6,2664.5,0.3]
[1645373438303,0.72013238,2665.4,2664.5,0.3]
[1645373438602,0.00497574,2665.1,2664.9,0.9441825]
[1645373439402,0.00430138,2665.2,2664.5,0.3]
[1645373439604,0.72013238,2665.4,2664.5,0.3]
[1645373439806,0.00241594,2665.1,2664.4,1.0]
[1645373440005,0.00241594,2665.1,2664.3,4.8374]
[1645373440203,0.00241594,2665.1,2664.3,3.8374]
[1645373440404,0.00241594,2665.1,2664.4,1.0]
[1645373440603,0.00430138,2665.4,2664.5,0.1875]
[1645373441061,0.00241607,2664.8,2664.7,0.95615157]
[1645373441251,0.00241607,2664.8,2664.7,0.3]
[1645373441453,0.00241607,2664.8,2664.5,0.1875]
[1645373441854,4.43618876,2665.4,2664.5,0.1875]
[1645373442053,0.0024161,2664.8,2664.5,0.1875]
[1645373442256,0.0024161,2664.8,2664.7,1.18022759]
[1645373442452,0.0024161,2664.8,2664.5,0.1875]
[1645373442651,0.0024161,2664.8,2664.3,3.0499]
[1645373442652,0.0024161,2664.8,2664.4,0.1875]
[1645373443054,0.00430138,2665.4,2664.5,0.93848]
[1645373443256,0.00241612,2664.7,2664.5,0.93420539]
[1645373443655,0.00241612,2664.7,2664.5,1.23420539]
[1645373443854,0.00241612,2664.7,2664.5,1.53420539]
[1645373444054,0.00241612,2664.7,2664.6,1.08053771]
[1645373444254,0.00430138,2665.4,2664.6,1.08053771]
[1645373444456,0.00241612,2664.7,2664.6,2.08053771]
[1645373444661,0.00241612,2664.7,2664.6,1.08053771]
[1645373444908,0.00241612,2664.7,2664.6,2.08053771]
[1645373445102,0.00241612,2664.7,2664.6,1.08053771]
[1645373445302,0.00241612,2664.7,2664.6,2.08053771]
[1645373445502,0.00430138,2665.4,2664.6,1.08053771]
[1645373445704,0.00966293,2665.2,2665.0,0.96873599]
[1645373445901,0.00966293,2665.2,2665.0,1.26873599]
[1645373446102,0.00966293,2665.2,2665.0,1.56873599]
[1645373446704,0.00430138,2665.4,2665.0,1.56873599]
[1645373446909,0.965831,2666.1,2665.0,1.56873599]
[1645373446910,0.0024159,2665.2,2665.0,1.56873599]
[1645373447907,0.00430138,2666.0,2665.2,0.93819]
[1645373448105,0.00430138,2666.0,2665.6,1.12570392]
[1645373448304,0.00430138,2666.0,2665.6,1.72570392]
[1645373448752,0.00430138,2666.2,2665.6,0.3]
[1645373448954,0.72013238,2666.2,2665.3,1.163]
[1645373449355,0.00241559,2665.9,2665.3,1.163]
[1645373449752,0.00241559,2665.9,2665.5,0.8741278]
[1645373450153,0.00241559,2665.9,2665.5,1.1741278]
[1645373450353,0.00430138,2666.2,2665.5,1.1741278]
[1645373450654,0.00241563,2665.8,2665.5,2.4123278]
[1645373450851,0.00241563,2665.8,2665.5,3.4123278]
[1645373451451,0.00430138,2666.4,2665.5,3.4123278]
[1645373451754,0.00966117,2666.2,2666.0,1.18638895]
[1645373451951,0.00966117,2666.2,2666.0,1.48638895]
[1645373452152,0.00966117,2666.2,2666.0,1.78638895]
[1645373452405,0.00966117,2666.2,2665.6,5.2494]
[1645373452614,0.00430138,2666.6,2665.7,0.93814]
[1645373453013,0.00241546,2666.2,2665.7,1.12564]
[1645373453205,0.00241546,2666.2,2665.7,6.12564]
[1645373453407,0.00241546,2666.2,2665.7,1.12564]
[1645373453803,0.00430138,2666.7,2665.8,0.3]
[1645373454006,0.99419262,2666.6,2665.9,0.92648413]
[1645373454209,0.25,2666.8,2665.9,1.22648413]
[1645373454210,0.00241552,2666.1,2665.9,1.22648413]
[1645373454410,3.5077267,2667.1,2665.9,1.22648413]
[1645373454411,0.0077267,2667.1,2666.2,0.93799]
[1645373454713,0.0077267,2667.1,2666.4,11.52]
[1645373454909,0.0077267,2667.1,2666.5,5.1874]
[1645373455110,0.0077267,2667.1,2666.5,0.1874]
[1645373455310,0.0077267,2667.1,2666.7,1.1487677]
[1645373455508,0.0077267,2667.1,2666.7,2.3864477]
[1645373455705,0.0077267,2667.1,2666.7,2.6864477]
[1645373455909,0.0077267,2667.1,2666.7,1.7487677]
[1645373456162,0.0077267,2667.1,2666.6,0.44855075]
[1645373456360,0.0077267,2667.1,2666.8,1.11276052]
[1645373456560,0.00125801,2667.0,2666.8,2.05045052]
[1645373456958,0.00125801,2667.0,2666.8,1.11276052]
[1645373457159,0.00125801,2667.0,2666.6,1.87545]
[1645373457365,1.63314069,2667.5,2666.4,1.141]
[1645373457759,0.00125801,2667.0,2666.4,1.141]
[1645373458157,0.00125801,2667.0,2666.7,1.09552629]
[1645373458559,0.00125801,2667.0,2666.4,1.441]
[1645373458759,0.93743453,2667.3,2666.4,1.741]
[1645373458958,0.93743453,2667.3,2666.7,0.00120013]
[1645373459558,1.63314069,2667.5,2666.7,0.98860137]
[1645373459809,1.63314069,2667.5,2666.7,1.58860137]
[1645373460812,1.63314069,2667.5,2667.2,0.97841387]
[1645373461211,1.63314069,2667.5,2666.7,2.828]
[1645373461412,0.00123051,2667.4,2666.7,2.828]
[1645373462315,1.63314069,2667.5,2666.7,3.97322088]
[1645373462513,0.00242943,2667.4,2666.7,3.97565096]
[1645373463216,0.00242943,2667.4,2667.2,1.1334075]
[1645373463414,0.00242943,2667.4,2666.7,2.228]
[1645373463660,0.00123341,2667.4,2666.8,0.3]
[1645373463860,0.00123341,2667.4,2666.7,2.228]
[1645373464163,0.00123341,2667.4,2666.7,2.828]
[1645373464363,0.00123341,2667.4,2666.7,6.328]
[1645373464664,1.63314069,2667.5,2667.2,0.89460366]
[1645373464861,0.00123341,2667.4,2667.2,1.19460366]
[1645373465260,0.00123341,2667.4,2667.2,0.89460366]
[1645373465460,0.00123341,2667.4,2667.2,1.19460366]
[1645373465662,0.00123341,2667.4,2667.2,0.89460366]
[1645373465967,1.63314069,2667.5,2666.7,2.828]
[1645373466162,0.0012335,2667.4,2666.7,2.828]
[1645373466361,0.0012335,2667.4,2666.8,3.5]
[1645373466863,0.0012335,2667.4,2666.8,0.93773]
[1645373467062,0.0012335,2667.4,2666.7,1.828]
[1645373467063,1.63314069,2667.5,2666.7,1.828]
[1645373467315,1.63314069,2667.5,2667.4,0.98319057]
[1645373468618,1.63314069,2667.5,2666.9,0.3]
[1645373468913,1.63314069,2667.5,2666.9,0.6]
[1645373469115,0.0061723,2667.3,2666.8,4.43773]
[1645373469317,0.0061723,2667.3,2666.8,0.93773]
[1645373469516,0.0061723,2667.3,2666.9,3.5]
[1645373469714,0.0061723,2667.3,2666.9,4.63853132]
[1645373470315,0.0061723,2667.3,2667.0,1.0]
[1645373470515,0.0061723,2667.3,2667.1,3.5]
[1645373470815,0.0061723,2667.3,2667.2,1.0]
[1645373471068,0.0061723,2667.3,2667.2,1.6]
[1645373471456,0.0061723,2667.3,2667.2,0.6]
[1645373472258,0.0061723,2667.3,2667.2,12.12]
[1645373472460,0.0061723,2667.3,2667.2,1.6]
[1645373472659,1.37609573,2667.5,2667.2,1.6]
[1645373473059,0.00982925,2667.9,2667.3,12.0]
[1645373473260,0.00982925,2667.9,2667.4,0.93741]
[1645373473462,0.00982925,2667.9,2667.4,1.93741]
[1645373473660,0.00982925,2667.9,2667.5,15.02]
[1645373473864,0.00982925,2667.9,2667.6,1.0]
[1645373474064,0.1874,2669.0,2668.0,9.0]
[1645373474263,0.0270221,2669.1,2668.1,4.5]
[1645373474464,0.0270221,2669.1,2668.2,6.37349997]
[1645373474664,0.0270221,2669.1,2668.4,19.34317501]
[1645373474920,0.0270221,2669.1,2668.5,11.7072]
[1645373475112,0.0270221,2669.1,2669.0,0.98355563]
[1645373475313,0.0270221,2669.1,2669.0,1.58355563]
[1645373475512,0.25,2669.5,2669.0,1.53686]
[1645373475713,0.50781551,2669.9,2669.0,15.62]
[1645373475915,0.50781551,2669.9,2669.0,12.12]
[1645373476113,0.50781551,2669.9,2669.1,12.52]
[1645373476315,0.50781551,2669.9,2669.1,12.82]
[1645373476521,0.40781551,2669.9,2669.3,11.52]
[1645373476714,0.40781551,2669.9,2669.5,11.52]
[1645373476916,0.40781551,2669.9,2669.6,1.0]
[1645373477114,0.40781551,2669.9,2669.7,1.98298104]
[1645373477314,0.40781551,2669.9,2669.7,2.28298104]
[1645373477715,0.00781551,2669.9,2669.7,2.28298104]
[1645373478118,0.00904714,2669.9,2669.7,2.28298104]
[1645373478314,0.00904714,2669.9,2669.7,2.23298104]
[1645373479164,0.01721661,2669.9,2669.7,2.24098104]
[1645373479360,0.01844824,2669.9,2669.7,2.24098104]
[1645373479563,0.0032588,2669.9,2669.7,2.24098104]
[1645373479768,0.0032588,2669.9,2669.8,0.93653]
[1645373479965,0.25,2670.2,2669.8,1.23653]
[1645373480163,0.25,2670.2,2669.8,1.93653]
[1645373480460,0.94425988,2671.1,2669.8,2.23653]
[1645373480662,4.44425988,2671.1,2670.1,0.93655]
[1645373480864,4.44425988,2671.1,2670.2,0.3]
[1645373481061,4.44425988,2671.1,2670.2,0.6]
[1645373481464,0.94425988,2671.1,2670.4,0.86915776]
[1645373481666,0.84425988,2671.1,2670.4,0.86915776]
[1645373481864,0.00121127,2670.8,2669.8,2.8714]
[1645373482320,0.00121127,2670.8,2669.8,3.4714]
[1645373482824,1.06662975,2670.4,2669.8,4.6118356]
[1645373483028,1.06784102,2670.4,2669.7,0.008]
[1645373483229,15.02,2670.3,2669.7,0.008]
[1645373483430,16.52,2670.1,2669.7,0.008]
[1645373483624,0.1872,2670.0,2669.7,0.008]
[1645373484025,1.04879484,2669.9,2669.7,0.008]
[1645373484425,1.04879484,2669.9,2668.9,1.04350591]
[1645373484628,1.04879484,2669.9,2669.8,0.008]
[1645373485326,1.04879484,2669.9,2668.3,0.1872]
[1645373485327,0.01028674,2669.7,2668.3,0.1872]
[1645373485528,0.1872,2669.6,2668.1,0.97777998]
[1645373485728,3.6872,2669.6,2668.1,0.97777998]
[1645373486073,3.6872,2669.6,2667.7,2.3915]
[1645373486262,3.6872,2669.6,2667.7,2.2043]
[1645373486766,0.04698529,2669.4,2667.7,2.2043]
[1645373486962,0.84366522,2668.5,2667.7,2.2043]
[1645373487162,0.84366522,2668.5,2667.7,1.0277]
[1645373487563,0.1872,2669.0,2667.7,1.0277]
[1645373487762,0.25,2669.1,2667.7,1.0277]
[1645373487962,0.04699203,2668.6,2667.7,1.0277]
[1645373488666,0.04699203,2668.6,2668.3,1.10341129]
[1645373488870,0.1872,2669.6,2668.3,1.71633282]
[1645373489065,0.02299309,2668.7,2668.3,1.71633282]
[1645373489270,0.02299309,2668.7,2668.3,1.10341129]
[1645373489810,0.02299309,2668.7,2668.3,1.70341129]
[1645373490008,0.01198677,2669.5,2668.3,1.70341129]
[1645373490210,0.02299309,2669.0,2668.1,7.8372]
[1645373490408,0.02299309,2669.0,2668.1,4.3372]
[1645373490609,0.02299309,2669.0,2668.0,6.7032]
[1645373490812,0.02299309,2669.0,2667.8,1.0]
[1645373491112,1.09949164,2668.3,2667.7,1.96126756]
[1645373491311,0.00418816,2668.2,2667.5,0.1872]
[1645373491710,0.00418816,2668.2,2667.4,3.6874]
[1645373492415,0.00418816,2668.2,2667.3,3.04806]
[1645373492416,0.00418816,2668.2,2667.3,1.1732]
[1645373492613,12.3346,2668.9,2667.2,0.0024715]
[1645373492614,0.03705702,2668.3,2667.2,0.0024715]
[1645373492914,11.52,2668.1,2667.2,0.0024715]
[1645373493113,0.00418816,2668.0,2667.2,0.0024715]
[1645373493415,0.00418816,2668.1,2667.2,0.0024715]
[1645373493664,0.00418816,2668.2,2666.6,8.31777]
[1645373493864,4.0646,2668.7,2667.2,0.00126374]
[1645373493865,0.00418816,2668.3,2667.2,0.00126374]
[1645373494067,11.52,2668.4,2667.2,0.00126374]
[1645373494262,0.00418816,2668.3,2667.2,0.00126374]
[1645373494465,11.52418816,2668.3,2667.2,0.00126374]
[1645373494663,11.52418816,2668.3,2667.0,0.98866702]
[1645373494864,15.02,2668.2,2667.0,0.98866702]
[1645373495062,0.87780947,2667.7,2667.2,0.00126374]
[1645373495466,0.00418816,2667.6,2667.2,0.00126374]
[1645373495863,0.00418816,2667.6,2666.7,1.0]
[1645373496064,0.00418816,2667.6,2666.7,1.6]
[1645373496266,0.00418816,2667.6,2667.2,0.00126374]
[1645373496665,0.89650272,2667.5,2667.2,0.00126374]
[1645373497073,0.89650272,2667.5,2666.7,1.6]
[1645373497320,15.02,2668.0,2666.6,7.38]
[1645373497321,1.11690507,2667.0,2666.6,7.38]
[1645373497517,1.11690507,2667.0,2666.2,1.0]
[1645373497717,1.11690507,2667.0,2666.2,1.6]
[1645373497924,0.00418816,2667.5,2666.3,0.9379]
[1645373498116,0.00418816,2667.5,2666.3,1.4253]
[1645373498417,0.00418816,2667.5,2666.6,1.87526]
[1645373498616,0.00418816,2667.5,2666.8,0.00247441]
[1645373498817,0.86576999,2667.5,2666.9,0.91047261]
[1645373499216,0.86576999,2667.5,2666.9,1.21047261]
[1645373499415,0.00418816,2667.5,2666.9,1.21047261]
[1645373499623,0.00807557,2667.5,2666.9,1.51047261]
[1645373499824,0.00388741,2667.5,2667.1,0.94008427]
[1645373500021,0.00388741,2667.5,2667.3,0.01287587]
[1645373500421,0.00388741,2667.5,2667.2,0.4874]
[1645373500621,0.00388741,2667.5,2667.2,0.1874]
[1645373500823,0.00388741,2667.5,2666.9,7.38]
[1645373501073,0.00388741,2667.5,2667.2,0.00247422]
[1645373501758,1.0634447,2667.4,2667.2,0.00247422]
[1645373501962,1.0634447,2667.4,2666.9,7.38]
[1645373502166,0.00388741,2667.5,2667.2,0.0024742]
[1645373503265,0.00388741,2667.5,2666.9,0.3]
[1645373503461,0.00388741,2667.5,2666.7,0.3]
[1645373503865,0.00388741,2667.5,2666.8,0.93767]
[1645373504064,0.00388741,2667.5,2666.6,2.7326]
[1645373504263,0.00388741,2667.5,2666.7,1.11608131]
[1645373504814,0.00388741,2667.5,2667.0,0.00247429]
[1645373505408,0.00388741,2667.5,2667.0,3.50247429]
[1645373505609,0.00388741,2667.5,2667.0,3.8]
[1645373505810,0.00388741,2667.5,2667.2,1.1836603]
[1645373506013,0.00388741,2667.5,2667.3,3.5]
[1645373506215,0.00388741,2667.5,2667.3,4.73745]
[1645373506415,0.00388741,2667.5,2667.4,4.5]
[1645373506711,0.00388741,2667.5,2667.4,4.8]
[1645373508010,0.00388741,2667.5,2667.4,1.3]
[1645373508211,0.00388741,2667.5,2667.4,1.0]
[1645373508414,0.00388741,2667.5,2667.4,0.3]
[1645373509362,0.00388741,2667.5,2667.4,3.8]
[1645373509759,0.00388741,2667.5,2667.4,4.8]
[1645373509963,0.00388741,2667.5,2667.4,1.3]
[1645373510366,0.00388741,2667.5,2667.4,1.0]
[1645373510765,0.00388741,2667.5,2667.0,1.1609]
[1645373511164,0.00388741,2667.5,2666.7,2.9139]
[1645373511863,0.00388741,2667.5,2667.0,1.13198808]
[1645373512063,0.00388741,2667.5,2666.7,0.1874]
[1645373512325,0.00388741,2667.5,2666.6,2.4344]
[1645373513124,0.00388741,2667.5,2666.9,0.00248903]
[1645373513324,1.06771884,2667.4,2666.9,0.00248903]
[1645373513927,1.06771884,2667.4,2666.6,4.0344]
[1645373514327,1.07133067,2667.4,2667.0,0.00248898]
[1645373514929,0.00361183,2667.4,2667.0,0.00248898]
[1645373515130,0.00361183,2667.4,2666.9,1.15024526]
[1645373515528,0.00361183,2667.4,2667.1,0.00248896]
[1645373516376,0.00361183,2667.4,2666.9,1.15024526]
[1645373516576,0.00361183,2667.4,2666.9,1.00024526]
[1645373516777,0.00361183,2667.4,2667.0,3.5]
[1645373517276,0.00361183,2667.4,2667.1,1.1874]
[1645373517472,0.00361183,2667.4,2667.2,3.5]
[1645373517677,0.00361183,2667.4,2667.2,3.8]
[1645373517875,0.00361183,2667.4,2667.3,1.0]
[1645373518075,0.00361183,2667.4,2667.3,4.5]
[1645373518277,0.00361183,2667.4,2667.3,1.6]
[1645373518674,0.00361183,2667.4,2667.2,1.0]
[1645373519681,0.00361183,2667.4,2667.0,1.2341]
[1645373519912,0.00072242,2667.4,2667.0,1.2341]
[1645373520314,0.00072242,2667.4,2667.2,0.00248304]
[1645373521208,0.00072242,2667.4,2667.1,0.3]
[1645373521413,0.00072242,2667.4,2667.2,0.00127256]
[1645373522410,0.20678465,2668.2,2667.3,6.5]
[1645373522611,11.52,2668.6,2667.2,1.23880256]
[1645373522812,11.52,2668.6,2667.2,2.23880256]
[1645373523210,0.1,2667.4,2667.2,2.23880256]
[1645373523662,0.1,2667.4,2667.3,0.85601886]
[1645373523960,0.1,2667.4,2667.3,1.15601886]
[1645373524363,0.1,2667.4,2667.3,1.47100772]
[1645373524562,0.1,2667.4,2667.3,1.15601886]
[1645373524761,0.1,2667.4,2667.3,2.15601886]
[1645373524963,0.1,2667.4,2667.3,1.47158127]
[1645373525165,0.28727394,2668.3,2667.3,2.47158127]
[1645373525367,0.28727394,2668.3,2667.4,0.31556241]
[1645373525762,0.28727394,2668.3,2667.4,0.61556241]
[1645373525963,0.28727394,2668.3,2667.4,0.3]
[1645373525964,0.25,2668.3,2667.4,0.3]
[1645373526163,0.25,2668.3,2667.9,1.03482874]
[1645373526364,1.04667999,2668.5,2667.9,1.03482874]
[1645373526365,0.0372757,2668.4,2667.9,1.03482874]
[1645373527164,1.04667999,2668.5,2667.9,1.03482874]
[1645373528916,1.25902017,2668.4,2667.9,1.03482874]
[1645373529817,0.04721273,2668.7,2668.0,0.93734]
[1645373529818,0.01184644,2668.2,2668.0,0.93734]
[1645373530014,0.01184644,2668.2,2668.1,0.61433271]
[1645373530218,0.01184644,2668.2,2668.1,0.91433271]
[1645373530417,0.04721318,2668.7,2668.2,12.0]
[1645373530619,0.04721318,2668.7,2668.3,0.50153271]
[1645373530814,0.25,2669.0,2668.4,1.357889]
[1645373531072,0.25,2669.0,2668.3,2.06138]
[1645373531073,1.25900213,2668.9,2668.3,2.06138]
[1645373531260,0.04721318,2668.7,2668.4,0.31424188]
[1645373531856,0.04721318,2668.7,2668.4,0.31001793]
[1645373532057,1.13417602,2669.0,2668.4,0.31001793]
[1645373532659,0.04720957,2669.1,2668.4,0.31001793]
[1645373533261,0.25,2669.4,2668.4,0.31001793]
[1645373533458,0.04720777,2669.3,2668.4,0.31001793]
[1645373533658,1.09157521,2669.3,2668.7,1.04948685]
[1645373534057,1.09157521,2669.3,2668.4,1.0]
[1645373534458,0.01069729,2668.9,2668.3,2.17418]
[1645373534922,0.01069729,2668.9,2668.3,2.87418]
[1645373535118,0.01069729,2668.9,2668.6,1.1454369]
[1645373538673,0.01069729,2668.9,2668.6,1.4454369]
[1645373538869,0.01069729,2668.9,2668.6,2.6825169]
[1645373539066,0.01069729,2668.9,2668.7,0.1872]
[1645373539266,0.01069729,2668.9,2668.7,1.1872]
[1645373539462,0.01069729,2668.9,2668.7,0.1872]
[1645373539663,0.01069729,2668.9,2668.7,1.1872]
[1645373539866,0.00633181,2668.9,2668.7,1.1872]
[1645373543316,0.00633181,2668.9,2668.8,3.5]
[1645373543715,0.00633181,2668.9,2668.8,4.5]
[1645373544315,0.01009816,2668.9,2668.8,4.5]
[1645373545318,0.01690911,2669.7,2669.3,1.00988498]
[1645373545319,0.01442487,2669.7,2669.3,1.00988498]
[1645373545518,0.01442487,2669.7,2669.3,1.94682498]
[1645373545519,0.02315891,2669.4,2669.3,1.94682498]
[1645373546382,11.65880251,2670.4,2669.3,2.54682498]
[1645373546575,11.65880251,2670.4,2669.3,2.24682498]
[1645373546776,0.0024874,2669.7,2669.4,0.3]
[1645373547178,0.0024874,2669.7,2669.4,1.3]
[1645373547574,0.04725807,2669.9,2669.4,1.3]
[1645373547575,0.037309,2669.9,2669.4,1.3]
[1645373547774,12.52778039,2670.4,2669.4,1.3]
[1645373548175,12.52778039,2670.4,2669.8,1.18891086]
[1645373548575,12.38897788,2670.4,2669.8,1.12600577]
[1645373549277,0.86897788,2670.4,2669.4,6.0045]
[1645373549480,12.38897788,2670.4,2669.4,6.0045]
[1645373549679,0.86897788,2670.4,2669.4,6.0045]
[1645373549913,0.86897788,2670.4,2669.4,2.5045]
[1645373550111,0.86897788,2670.4,2669.4,6.0045]